[Event "Late-Titled-Tuesday-Blitz-June-04-2024"]
[Site "Chess.com"]
[Date "2024.06.04"]
[Round "5"]
[White "SaraciNderim"]
[Black "crazy_but_lazy"]
[Result "0-1"]
[WhiteElo "2885"]
[BlackElo "2659"]
[TimeControl "180+1"]
[EndTime "14:57:39 PDT"]
[Termination "crazy_but_lazy won on time"]

1. b3 {[%clk 0:02:59.3]} 1... d5 {[%clk 0:02:59.1]} 2. Bb2 {[%clk 0:02:57.9]}
2... Bg4 {[%clk 0:02:59.5]} 3. d4 {[%clk 0:02:56.9]} 3... Nf6 {[%clk 0:02:58.1]}
4. Nd2 {[%clk 0:02:56.9]} 4... e6 {[%clk 0:02:57.7]} 5. Ngf3 {[%clk 0:02:56.4]}
5... Nbd7 {[%clk 0:02:55.7]} 6. h3 {[%clk 0:02:56.5]} 6... Bh5 {[%clk
0:02:55.7]} 7. e3 {[%clk 0:02:56.5]} 7... Be7 {[%clk 0:02:54.2]} 8. Bd3 {[%clk
0:02:56.6]} 8... c6 {[%clk 0:02:54.4]} 9. O-O {[%clk 0:02:56.5]} 9... O-O {[%clk
0:02:54.7]} 10. Re1 {[%clk 0:02:55.8]} 10... a5 {[%clk 0:02:53.4]} 11. a3 {[%clk
0:02:53.4]} 11... Bg6 {[%clk 0:02:47.7]} 12. Bxg6 {[%clk 0:02:45.6]} 12... hxg6
{[%clk 0:02:48.6]} 13. c4 {[%clk 0:02:45.6]} 13... c5 {[%clk 0:02:16.3]} 14.
cxd5 {[%clk 0:02:20.3]} 14... Nxd5 {[%clk 0:02:12.1]} 15. Ne4 {[%clk 0:02:05.2]}
15... Qb6 {[%clk 0:01:58.4]} 16. Rc1 {[%clk 0:01:49.9]} 16... Rac8 {[%clk
0:01:56.9]} 17. Ne5 {[%clk 0:01:49.3]} 17... Nxe5 {[%clk 0:01:49.8]} 18. dxe5
{[%clk 0:01:50.2]} 18... Rfd8 {[%clk 0:01:49.3]} 19. Qc2 {[%clk 0:01:47.6]}
19... Qc6 {[%clk 0:01:32.9]} 20. a4 {[%clk 0:01:31.3]} 20... Nb4 {[%clk
0:01:26.2]} 21. Qc4 {[%clk 0:01:30.9]} 21... Nd3 {[%clk 0:01:25.8]} 22. Bc3
{[%clk 0:01:29.2]} 22... Nxe1 {[%clk 0:01:13.2]} 23. Bxe1 {[%clk 0:01:27.7]}
23... b6 {[%clk 0:01:13.8]} 24. Nc3 {[%clk 0:01:27.4]} 24... Rd7 {[%clk
0:01:12.8]} 25. Qb5 {[%clk 0:01:17.1]} 25... Qxb5 {[%clk 0:01:09.8]} 26. Nxb5
{[%clk 0:01:17.4]} 26... Rcd8 {[%clk 0:01:09.8]} 27. Nc3 {[%clk 0:01:16.9]}
27... f6 {[%clk 0:00:58.7]} 28. Kf1 {[%clk 0:01:17.1]} 28... f5 {[%clk
0:00:45.5]} 29. Ke2 {[%clk 0:01:16.7]} 29... Rd3 {[%clk 0:00:45.7]} 30. Rb1
{[%clk 0:01:13.1]} 30... R8d7 {[%clk 0:00:38.1]} 31. Nb5 {[%clk 0:01:10.4]}
31... R3d5 {[%clk 0:00:38.5]} 32. Bc3 {[%clk 0:01:06.9]} 32... Kf7 {[%clk
0:00:34.1]} 33. Na3 {[%clk 0:01:06.5]} 33... Bd8 {[%clk 0:00:30.5]} 34. Nc4
{[%clk 0:01:05.9]} 34... Bc7 {[%clk 0:00:30.7]} 35. f3 {[%clk 0:01:03.5]} 35...
Rd3 {[%clk 0:00:24.6]} 36. Rc1 {[%clk 0:01:02.7]} 36... g5 {[%clk 0:00:23.3]}
37. g4 {[%clk 0:00:57.3]} 37... f4 {[%clk 0:00:20.1]} 38. e4 {[%clk 0:00:46.6]}
38... Kg6 {[%clk 0:00:15.5]} 39. Rc2 {[%clk 0:00:12.1]} 39... Rd1 {[%clk
0:00:15]} 40. Be1 {[%clk 0:00:11.9]} 40... Rb1 {[%clk 0:00:13.6]} 41. Rb2 {[%clk
0:00:12.3]} 41... Rxb2+ {[%clk 0:00:12.3]} 42. Nxb2 {[%clk 0:00:13.2]} 42...
Bxe5 {[%clk 0:00:12.7]} 43. Nc4 {[%clk 0:00:13.8]} 43... Bc7 {[%clk 0:00:13.3]}
44. h4 {[%clk 0:00:14.3]} 44... gxh4 {[%clk 0:00:12.1]} 45. Bxh4 {[%clk
0:00:15.2]} 45... Kf7 {[%clk 0:00:10.7]} 46. Be1 {[%clk 0:00:14.6]} 46... e5
{[%clk 0:00:08.5]} 47. Bc3 {[%clk 0:00:14.8]} 47... Ke6 {[%clk 0:00:09]} 48. Na3
{[%clk 0:00:13.8]} 48... g6 {[%clk 0:00:09]} 49. Nb5 {[%clk 0:00:13.6]} 49...
Bb8 {[%clk 0:00:09.6]} 50. Kf2 {[%clk 0:00:11.9]} 50... Rh7 {[%clk 0:00:10.2]}
51. Kg2 {[%clk 0:00:12.4]} 51... Rd7 {[%clk 0:00:10.8]} 52. Kf2 {[%clk
0:00:12.9]} 52... Rd1 {[%clk 0:00:09.8]} 53. Na3 {[%clk 0:00:10.8]} 53... Rh1
{[%clk 0:00:07.9]} 54. Ke2 {[%clk 0:00:10.8]} 54... Rh2+ {[%clk 0:00:07.6]} 55.
Ke1 {[%clk 0:00:10.8]} 55... Ra2 {[%clk 0:00:05.1]} 56. Nc4 {[%clk 0:00:10.8]}
56... Bc7 {[%clk 0:00:04.7]} 57. Bd2 {[%clk 0:00:08.7]} 57... Ra1+ {[%clk
0:00:04.4]} 58. Ke2 {[%clk 0:00:08.9]} 58... Rh1 {[%clk 0:00:04.9]} 59. Be1
{[%clk 0:00:08.7]} 59... Rh2+ {[%clk 0:00:04.1]} 60. Bf2 {[%clk 0:00:09.2]}
60... Rh1 {[%clk 0:00:04.8]} 61. Nd2 {[%clk 0:00:09.3]} 61... Rc1 {[%clk
0:00:03.8]} 62. Kd3 {[%clk 0:00:09.4]} 62... Rd1 {[%clk 0:00:03.5]} 63. Ke2
{[%clk 0:00:09.8]} 63... Rh1 {[%clk 0:00:03.9]} 64. Nc4 {[%clk 0:00:09.9]} 64...
Kf6 {[%clk 0:00:03.9]} 65. Nd2 {[%clk 0:00:09.7]} 65... Ra1 {[%clk 0:00:03.6]}
66. Nc4 {[%clk 0:00:09.4]} 66... Ra2+ {[%clk 0:00:03.4]} 67. Nd2 {[%clk
0:00:10]} 67... Ra1 {[%clk 0:00:04.3]} 68. Kd3 {[%clk 0:00:10.5]} 68... Rc1
{[%clk 0:00:04.6]} 69. Nc4 {[%clk 0:00:10.7]} 69... Ke6 {[%clk 0:00:04.1]} 70.
Nd2 {[%clk 0:00:10.8]} 70... Rh1 {[%clk 0:00:04.1]} 71. Ke2 {[%clk 0:00:11.2]}
71... Rh8 {[%clk 0:00:04.5]} 72. Nc4 {[%clk 0:00:11.7]} 72... Rd8 {[%clk
0:00:05]} 73. Na3 {[%clk 0:00:12.2]} 73... Kd7 {[%clk 0:00:04.9]} 74. Nb5 {[%clk
0:00:12.8]} 74... Kc6 {[%clk 0:00:05.4]} 75. Nc3 {[%clk 0:00:13.1]} 75... Rh8
{[%clk 0:00:04.5]} 76. Nd5 {[%clk 0:00:13.2]} 76... Bd8 {[%clk 0:00:05.2]} 77.
Be1 {[%clk 0:00:10.9]} 77... b5 {[%clk 0:00:04.8]} 78. axb5+ {[%clk 0:00:10.5]}
78... Kxb5 {[%clk 0:00:05.7]} 79. Bc3 {[%clk 0:00:11]} 79... Re8 {[%clk
0:00:03.9]} 80. Kd3 {[%clk 0:00:11.5]} 80... Rh8 {[%clk 0:00:02.6]} 81. Bxe5
{[%clk 0:00:11.3]} 81... Rh3 {[%clk 0:00:03.2]} 82. Ke2 {[%clk 0:00:10.4]} 82...
g5 {[%clk 0:00:03.3]} 83. Bd6 {[%clk 0:00:10]} 83... Rh2+ {[%clk 0:00:03.5]} 84.
Ke1 {[%clk 0:00:09.6]} 84... c4 {[%clk 0:00:02.7]} 85. bxc4+ {[%clk 0:00:06.8]}
85... Kxc4 {[%clk 0:00:03.6]} 86. Kf1 {[%clk 0:00:04.4]} 86... a4 {[%clk
0:00:02.6]} 87. Kg1 {[%clk 0:00:04.9]} 87... Rd2 {[%clk 0:00:02.6]} 88. Kf1
{[%clk 0:00:02.3]} 88... Rxd5 {[%clk 0:00:03]} 89. exd5 {[%clk 0:00:02.3]} 89...
Kxd5 {[%clk 0:00:03.9]} 90. Ba3 {[%clk 0:00:02.9]} 90... Kc4 {[%clk 0:00:04.5]}
91. Ke2 {[%clk 0:00:03.5]} 91... Kb3 {[%clk 0:00:04.8]} 92. Bc5 {[%clk
0:00:04.1]} 92... Ba5 {[%clk 0:00:04.9]} 93. Kd3 {[%clk 0:00:04.5]} 93... Bb4
{[%clk 0:00:05.2]} 94. Bd4 {[%clk 0:00:04.8]} 94... a3 {[%clk 0:00:05.8]} 95.
Bf6 {[%clk 0:00:04.9]} 95... a2 {[%clk 0:00:06.1]} 96. Be5 {[%clk 0:00:05.4]}
96... Ba3 {[%clk 0:00:06.2]} 97. Bxf4 {[%clk 0:00:01.7]} 97... a1=Q {[%clk
0:00:06.1]} 98. Be5 {[%clk 0:00:02.6]} 98... Qxe5 {[%clk 0:00:06.2]} 0-1

[Event "Late-Titled-Tuesday-Blitz-June-04-2024"]
[Site "Chess.com"]
[Date "2024.06.04"]
[Round "6"]
[White "Flawless_Fighter"]
[Black "Crasyhealer"]
[Result "1-0"]
[WhiteElo "2678"]
[BlackElo "2529"]
[TimeControl "180+1"]
[EndTime "15:00:58 PDT"]
[Termination "Flawless_Fighter won by resignation"]

1. d4 {[%clk 0:03:00.9]} 1... Nf6 {[%clk 0:02:49.1]} 2. Nf3 {[%clk 0:03:00]}
2... d5 {[%clk 0:02:47.2]} 3. Bf4 {[%clk 0:02:59]} 3... Bg4 {[%clk 0:02:43.5]}
4. Nbd2 {[%clk 0:02:58.4]} 4... e6 {[%clk 0:02:43.4]} 5. e3 {[%clk 0:02:58.6]}
5... Bd6 {[%clk 0:02:43.9]} 6. Bxd6 {[%clk 0:02:52.7]} 6... cxd6 {[%clk
0:02:43.2]} 7. c4 {[%clk 0:02:53.2]} 7... dxc4 {[%clk 0:02:42.4]} 8. Bxc4 {[%clk
0:02:53.5]} 8... d5 {[%clk 0:02:42.1]} 9. Bb5+ {[%clk 0:02:52.7]} 9... Nc6
{[%clk 0:02:42.2]} 10. Bxc6+ {[%clk 0:02:49.9]} 10... bxc6 {[%clk 0:02:43.1]}
11. Rc1 {[%clk 0:02:49.6]} 11... Qb6 {[%clk 0:02:41.4]} 12. Qc2 {[%clk 0:02:43]}
12... O-O {[%clk 0:02:40]} 13. b3 {[%clk 0:02:39.7]} 13... Rfc8 {[%clk
0:02:38.2]} 14. O-O {[%clk 0:02:37]} 14... a5 {[%clk 0:02:32.9]} 15. h3 {[%clk
0:02:33]} 15... Bf5 {[%clk 0:02:32.8]} 16. Qc5 {[%clk 0:02:33]} 16... Qb7 {[%clk
0:02:33.3]} 17. Ne5 {[%clk 0:02:29.3]} 17... Bd3 {[%clk 0:02:32.4]} 18. Nxd3
{[%clk 0:02:28.6]} 18... Nd7 {[%clk 0:02:29.4]} 19. Qd6 {[%clk 0:02:27.6]} 19...
Nb6 {[%clk 0:02:28.6]} 20. Ne5 {[%clk 0:02:24.6]} 20... f6 {[%clk 0:02:24.2]}
21. Nxc6 {[%clk 0:02:23.9]} 21... Nc4 {[%clk 0:02:24]} 22. Qxe6+ {[%clk
0:02:13]} 22... Kh8 {[%clk 0:02:23.5]} 23. bxc4 {[%clk 0:02:13.5]} 23... Rxc6
{[%clk 0:02:23.5]} 24. Qxd5 {[%clk 0:02:14.2]} 1-0

[Event "Late-Titled-Tuesday-Blitz-June-04-2024"]
[Site "Chess.com"]
[Date "2024.06.04"]
[Round "6"]
[White "WPWPWP-2015"]
[Black "Bob_2004"]
[Result "1-0"]
[WhiteElo "2536"]
[BlackElo "2631"]
[TimeControl "180+1"]
[EndTime "15:01:12 PDT"]
[Termination "WPWPWP-2015 won by resignation"]

1. e4 {[%clk 0:02:55.9]} 1... c5 {[%clk 0:03:00.4]} 2. Nf3 {[%clk 0:02:54.1]}
2... Nf6 {[%clk 0:03:01]} 3. Nc3 {[%clk 0:02:53.4]} 3... d5 {[%clk 0:03:01.4]}
4. exd5 {[%clk 0:02:52.9]} 4... Nxd5 {[%clk 0:03:02.3]} 5. Bc4 {[%clk
0:02:52.5]} 5... Nb6 {[%clk 0:03:02.6]} 6. Be2 {[%clk 0:02:48]} 6... Nc6 {[%clk
0:03:02.9]} 7. O-O {[%clk 0:02:47.5]} 7... Bg4 {[%clk 0:03:03.5]} 8. h3 {[%clk
0:02:46.9]} 8... Bh5 {[%clk 0:03:03.8]} 9. a4 {[%clk 0:02:45]} 9... e6 {[%clk
0:03:03.6]} 10. a5 {[%clk 0:02:44.9]} 10... Nd5 {[%clk 0:03:03.7]} 11. a6 {[%clk
0:02:44.4]} 11... b6 {[%clk 0:03:04.1]} 12. Bb5 {[%clk 0:02:43.3]} 12... Rc8
{[%clk 0:03:03.1]} 13. g4 {[%clk 0:02:37]} 13... Bg6 {[%clk 0:02:59]} 14. Ne5
{[%clk 0:02:36.1]} 14... Ne7 {[%clk 0:02:58.5]} 15. Qf3 {[%clk 0:02:35.4]} 15...
Qc7 {[%clk 0:02:46.9]} 16. Re1 {[%clk 0:02:34.5]} 16... f6 {[%clk 0:01:54.4]}
17. Nxc6 {[%clk 0:02:25.4]} 17... e5 {[%clk 0:01:46.7]} 18. Nxe7+ {[%clk
0:02:22.6]} 18... Kxe7 {[%clk 0:01:46.7]} 1-0

[Event "Late-Titled-Tuesday-Blitz-June-04-2024"]
[Site "Chess.com"]
[Date "2024.06.04"]
[Round "6"]
[White "dosto07"]
[Black "zenitushka"]
[Result "1-0"]
[WhiteElo "2513"]
[BlackElo "2360"]
[TimeControl "180+1"]
[EndTime "15:01:54 PDT"]
[Termination "dosto07 won by resignation"]

1. e4 {[%clk 0:03:00.9]} 1... e6 {[%clk 0:02:52.3]} 2. d4 {[%clk 0:03:00]} 2...
d5 {[%clk 0:02:53.1]} 3. Nd2 {[%clk 0:03:00.3]} 3... Nc6 {[%clk 0:02:53.3]} 4.
Ngf3 {[%clk 0:03:00]} 4... Nf6 {[%clk 0:02:53.6]} 5. e5 {[%clk 0:03:00.4]} 5...
Nd7 {[%clk 0:02:54.1]} 6. Be2 {[%clk 0:03:00.5]} 6... f6 {[%clk 0:02:53.9]} 7.
exf6 {[%clk 0:03:01.4]} 7... Qxf6 {[%clk 0:02:54.7]} 8. Nf1 {[%clk 0:03:01.3]}
8... Bd6 {[%clk 0:02:51.5]} 9. Ne3 {[%clk 0:03:01.3]} 9... O-O {[%clk
0:02:51.7]} 10. O-O {[%clk 0:03:01.2]} 10... Qg6 {[%clk 0:02:52]} 11. h3 {[%clk
0:02:53.9]} 11... Nf6 {[%clk 0:02:48.2]} 12. c4 {[%clk 0:02:39.6]} 12... Ne7
{[%clk 0:02:47.8]} 13. c5 {[%clk 0:02:14.2]} 13... Bf4 {[%clk 0:02:47.8]} 14.
Bd3 {[%clk 0:01:56.7]} 14... Ne4 {[%clk 0:02:40.6]} 15. Ng4 {[%clk 0:01:48.5]}
15... Qh5 {[%clk 0:02:11.7]} 16. Nfe5 {[%clk 0:01:40.1]} 16... Bxc1 {[%clk
0:02:03.6]} 17. Bxe4 {[%clk 0:01:31.8]} 17... Nf5 {[%clk 0:02:04.5]} 18. Nf6+
{[%clk 0:01:28.1]} 1-0

[Event "Late-Titled-Tuesday-Blitz-June-04-2024"]
[Site "Chess.com"]
[Date "2024.06.04"]
[Round "6"]
[White "AustinThomas12345"]
[Black "YurasovMat-2012"]
[Result "1/2-1/2"]
[WhiteElo "2483"]
[BlackElo "2593"]
[TimeControl "180+1"]
[EndTime "15:02:08 PDT"]
[Termination "Game drawn by repetition"]

1. e4 {[%clk 0:03:00.4]} 1... e5 {[%clk 0:02:57.9]} 2. Nf3 {[%clk 0:03:00.8]}
2... Nf6 {[%clk 0:02:57.9]} 3. Nc3 {[%clk 0:03:01.2]} 3... Bb4 {[%clk 0:02:57]}
4. Nxe5 {[%clk 0:03:00.9]} 4... O-O {[%clk 0:02:57.6]} 5. Nd3 {[%clk 0:03:01.3]}
5... Bxc3 {[%clk 0:02:58.2]} 6. dxc3 {[%clk 0:03:01.8]} 6... Nxe4 {[%clk
0:02:59]} 7. Be2 {[%clk 0:03:01.7]} 7... d5 {[%clk 0:02:59.6]} 8. O-O {[%clk
0:03:02]} 8... Bf5 {[%clk 0:03:00.1]} 9. Nf4 {[%clk 0:02:59.7]} 9... c6 {[%clk
0:02:57.7]} 10. f3 {[%clk 0:02:55.7]} 10... Qb6+ {[%clk 0:02:55.9]} 11. Qd4
{[%clk 0:02:56.1]} 11... Nc5 {[%clk 0:02:48.1]} 12. Be3 {[%clk 0:02:44.6]} 12...
Nbd7 {[%clk 0:02:45.8]} 13. Nh5 {[%clk 0:02:39.5]} 13... f6 {[%clk 0:02:42.6]}
14. Qf4 {[%clk 0:02:16.9]} 14... Rfe8 {[%clk 0:02:38.6]} 15. b4 {[%clk
0:02:08.6]} 15... Ne6 {[%clk 0:02:35.9]} 16. Bxb6 {[%clk 0:01:56.1]} 16... Nxf4
{[%clk 0:02:34.2]} 17. Nxf4 {[%clk 0:01:57]} 17... axb6 {[%clk 0:02:34]} 18. Bd3
{[%clk 0:01:49.9]} 18... Bxd3 {[%clk 0:02:32.8]} 19. cxd3 {[%clk 0:01:50.5]}
19... g5 {[%clk 0:02:32.4]} 20. Nh5 {[%clk 0:01:47.6]} 20... Ra3 {[%clk
0:02:31]} 21. Rfe1 {[%clk 0:01:46.6]} 21... Rxe1+ {[%clk 0:02:29.6]} 22. Rxe1
{[%clk 0:01:47.5]} 22... Kf7 {[%clk 0:02:28.6]} 23. Ng3 {[%clk 0:01:47]} 23...
Rxc3 {[%clk 0:02:21]} 24. Nf5 {[%clk 0:01:43.1]} 24... Ne5 {[%clk 0:02:16]} 25.
d4 {[%clk 0:01:42.8]} 25... Ng6 {[%clk 0:02:05.7]} 26. Nd6+ {[%clk 0:01:41.8]}
26... Kf8 {[%clk 0:02:05.6]} 27. Re8+ {[%clk 0:01:39.9]} 27... Kg7 {[%clk
0:02:04.5]} 28. Nf5+ {[%clk 0:01:40.5]} 28... Kf7 {[%clk 0:02:01.7]} 29. Nd6+
{[%clk 0:01:38.5]} 29... Kg7 {[%clk 0:02:01.8]} 30. Nf5+ {[%clk 0:01:39.2]}
30... Kf7 {[%clk 0:02:02.2]} 31. Nd6+ {[%clk 0:01:39.9]} 31... Kg7 {[%clk
0:02:02.8]} 1/2-1/2

[Event "Late-Titled-Tuesday-Blitz-June-04-2024"]
[Site "Chess.com"]
[Date "2024.06.04"]
[Round "6"]
[White "Kimkibo"]
[Black "FlemingA"]
[Result "1-0"]
[WhiteElo "2352"]
[BlackElo "2474"]
[TimeControl "180+1"]
[EndTime "15:02:12 PDT"]
[Termination "Kimkibo won by resignation"]

1. d4 {[%clk 0:03:00.9]} 1... d6 {[%clk 0:02:59.6]} 2. c4 {[%clk 0:02:58.5]}
2... g6 {[%clk 0:02:59.7]} 3. Nc3 {[%clk 0:02:58.7]} 3... Nf6 {[%clk 0:02:59.6]}
4. e4 {[%clk 0:02:58.9]} 4... Bg7 {[%clk 0:02:59.9]} 5. Be2 {[%clk 0:02:59.4]}
5... O-O {[%clk 0:03:00.4]} 6. g4 {[%clk 0:03:00.1]} 6... e5 {[%clk 0:02:57.8]}
7. g5 {[%clk 0:02:59.6]} 7... Nh5 {[%clk 0:02:46.7]} 8. Bxh5 {[%clk 0:02:55.4]}
8... gxh5 {[%clk 0:02:41.9]} 9. d5 {[%clk 0:02:55.3]} 9... Bg4 {[%clk
0:02:37.9]} 10. f3 {[%clk 0:02:54.5]} 10... Bd7 {[%clk 0:02:38.5]} 11. Be3
{[%clk 0:02:53.3]} 11... c6 {[%clk 0:02:38.7]} 12. Nge2 {[%clk 0:02:50.8]} 12...
cxd5 {[%clk 0:02:39]} 13. Nxd5 {[%clk 0:02:51.3]} 13... Be6 {[%clk 0:02:31]} 14.
Nf6+ {[%clk 0:02:50.7]} 14... Bxf6 {[%clk 0:02:25.8]} 15. gxf6 {[%clk
0:02:51.6]} 15... Qxf6 {[%clk 0:02:26.1]} 16. Bg5 {[%clk 0:02:50.1]} 16... Qxf3
{[%clk 0:02:23.5]} 17. Rg1 {[%clk 0:02:47.1]} 17... Kh8 {[%clk 0:02:08.1]} 18.
Qd3 {[%clk 0:02:21]} 18... Qg4 {[%clk 0:01:28.2]} 19. Rxg4 {[%clk 0:01:54.1]}
19... hxg4 {[%clk 0:01:26.9]} 20. Bf6+ {[%clk 0:01:51.1]} 20... Kg8 {[%clk
0:01:25.7]} 21. Qe3 {[%clk 0:01:51.4]} 1-0

[Event "Late-Titled-Tuesday-Blitz-June-04-2024"]
[Site "Chess.com"]
[Date "2024.06.04"]
[Round "6"]
[White "profedechess93"]
[Black "WilliamAlfaroCaracas"]
[Result "1-0"]
[WhiteElo "2595"]
[BlackElo "2374"]
[TimeControl "180+1"]
[EndTime "15:02:30 PDT"]
[Termination "profedechess93 won by resignation"]

1. e4 {[%clk 0:03:00.9]} 1... c5 {[%clk 0:02:59.1]} 2. Nf3 {[%clk 0:03:00.9]}
2... Nc6 {[%clk 0:02:59.3]} 3. Bb5 {[%clk 0:03:01.1]} 3... g6 {[%clk 0:02:56.3]}
4. c3 {[%clk 0:03:00.5]} 4... Bg7 {[%clk 0:02:48.3]} 5. d4 {[%clk 0:03:00.2]}
5... cxd4 {[%clk 0:02:31.4]} 6. cxd4 {[%clk 0:03:01.1]} 6... Qb6 {[%clk
0:02:26.2]} 7. Nc3 {[%clk 0:03:00.5]} 7... a6 {[%clk 0:02:17.1]} 8. Ba4 {[%clk
0:02:45.7]} 8... Qd8 {[%clk 0:02:07.7]} 9. d5 {[%clk 0:02:42.5]} 9... b5 {[%clk
0:01:43.2]} 10. Bb3 {[%clk 0:02:06.3]} 10... Na5 {[%clk 0:01:40.4]} 11. d6
{[%clk 0:01:52.2]} 11... e6 {[%clk 0:01:27.3]} 12. Bg5 {[%clk 0:01:41]} 12...
Qe7 {[%clk 0:01:08.8]} 13. dxe7 {[%clk 0:01:34.7]} 1-0

[Event "Late-Titled-Tuesday-Blitz-June-04-2024"]
[Site "Chess.com"]
[Date "2024.06.04"]
[Round "6"]
[White "rikchessmx"]
[Black "King_Deded4d5"]
[Result "0-1"]
[WhiteElo "2342"]
[BlackElo "2445"]
[TimeControl "180+1"]
[EndTime "15:02:59 PDT"]
[Termination "King_Deded4d5 won by checkmate"]

1. e4 {[%clk 0:03:00.9]} 1... e6 {[%clk 0:02:58.6]} 2. d4 {[%clk 0:02:58]} 2...
d5 {[%clk 0:02:59.1]} 3. Nc3 {[%clk 0:02:58.5]} 3... Nf6 {[%clk 0:02:59.1]} 4.
Bg5 {[%clk 0:02:51.7]} 4... Bb4 {[%clk 0:02:58]} 5. e5 {[%clk 0:02:51.8]} 5...
h6 {[%clk 0:02:58.5]} 6. Bd2 {[%clk 0:02:50.3]} 6... Bxc3 {[%clk 0:02:58.4]} 7.
bxc3 {[%clk 0:02:51.2]} 7... Ne4 {[%clk 0:02:59.3]} 8. Qg4 {[%clk 0:02:50.4]}
8... Kf8 {[%clk 0:02:58.6]} 9. Bd3 {[%clk 0:02:48.8]} 9... Nxd2 {[%clk 0:02:58]}
10. Kxd2 {[%clk 0:02:49.7]} 10... c5 {[%clk 0:02:58.7]} 11. h4 {[%clk
0:02:49.4]} 11... Nc6 {[%clk 0:02:58.9]} 12. Rh3 {[%clk 0:02:49]} 12... c4
{[%clk 0:02:59.5]} 13. Rg3 {[%clk 0:02:44.9]} 13... cxd3 {[%clk 0:02:58]} 14.
Qxg7+ {[%clk 0:02:44.5]} 14... Ke7 {[%clk 0:02:58]} 15. Qf6+ {[%clk 0:02:39.6]}
15... Kd7 {[%clk 0:02:58.1]} 16. Qxf7+ {[%clk 0:02:39.9]} 16... Qe7 {[%clk
0:02:45.6]} 17. Qg6 {[%clk 0:02:37.7]} 17... dxc2 {[%clk 0:02:43.7]} 18. Rf3
{[%clk 0:02:33.5]} 18... Rh7 {[%clk 0:02:18.5]} 19. Rf6 {[%clk 0:02:29.3]} 19...
Kc7 {[%clk 0:02:15.1]} 20. Nf3 {[%clk 0:02:24.5]} 20... Bd7 {[%clk 0:02:10]} 21.
Qxc2 {[%clk 0:02:21.2]} 21... Rg8 {[%clk 0:01:35.7]} 22. g3 {[%clk 0:02:19.7]}
22... Rf8 {[%clk 0:01:15]} 23. Rxf8 {[%clk 0:02:17.8]} 23... Qxf8 {[%clk
0:01:15.9]} 24. Qxh7 {[%clk 0:02:15.5]} 24... Qxf3 {[%clk 0:01:16.5]} 25. Rf1
{[%clk 0:02:11.5]} 25... Na5 {[%clk 0:01:12.9]} 26. Qxh6 {[%clk 0:02:05.1]}
26... Nc4+ {[%clk 0:01:13]} 27. Kc1 {[%clk 0:02:05]} 27... Qxc3+ {[%clk
0:01:11.1]} 28. Kd1 {[%clk 0:02:04.1]} 28... Ba4+ {[%clk 0:00:55]} 29. Ke2
{[%clk 0:02:02.2]} 29... Qc2+ {[%clk 0:00:55.6]} 30. Kf3 {[%clk 0:01:56]} 30...
Qe4# {[%clk 0:00:55.8]} 0-1

[Event "Late-Titled-Tuesday-Blitz-June-04-2024"]
[Site "Chess.com"]
[Date "2024.06.04"]
[Round "6"]
[White "Chessdreamer2020"]
[Black "Onischuk_V"]
[Result "0-1"]
[WhiteElo "2549"]
[BlackElo "2857"]
[TimeControl "180+1"]
[EndTime "15:03:13 PDT"]
[Termination "Onischuk_V won by resignation"]

1. e4 {[%clk 0:03:00.9]} 1... d6 {[%clk 0:03:00.3]} 2. d4 {[%clk 0:03:00.2]}
2... Nf6 {[%clk 0:03:00.8]} 3. Nc3 {[%clk 0:03:00.2]} 3... g6 {[%clk 0:03:01.4]}
4. h3 {[%clk 0:02:58.4]} 4... Bg7 {[%clk 0:02:59.9]} 5. g4 {[%clk 0:02:58.6]}
5... O-O {[%clk 0:02:57.1]} 6. Bg2 {[%clk 0:02:58.9]} 6... e5 {[%clk 0:02:54.9]}
7. Nge2 {[%clk 0:02:59.1]} 7... exd4 {[%clk 0:02:44.9]} 8. Nxd4 {[%clk
0:02:59.2]} 8... Nc6 {[%clk 0:02:44.5]} 9. Nde2 {[%clk 0:02:59.2]} 9... Re8
{[%clk 0:02:29.8]} 10. O-O {[%clk 0:02:58.8]} 10... Rb8 {[%clk 0:02:24.5]} 11.
Ng3 {[%clk 0:02:50.5]} 11... b5 {[%clk 0:02:21.8]} 12. a3 {[%clk 0:02:47.8]}
12... a5 {[%clk 0:02:21]} 13. g5 {[%clk 0:02:45.4]} 13... Nd7 {[%clk 0:02:20.3]}
14. f4 {[%clk 0:02:44.7]} 14... Nb6 {[%clk 0:02:11.3]} 15. Nxb5 {[%clk
0:02:29.4]} 15... Ba6 {[%clk 0:02:09.1]} 16. a4 {[%clk 0:02:26.4]} 16... Nxa4
{[%clk 0:02:08]} 17. Rxa4 {[%clk 0:02:19.8]} 17... Bxb5 {[%clk 0:02:07.5]} 18.
Ra3 {[%clk 0:02:17.1]} 18... Bxf1 {[%clk 0:02:06]} 19. Bxf1 {[%clk 0:02:17.4]}
19... Bxb2 {[%clk 0:02:01.5]} 20. Bxb2 {[%clk 0:02:16.5]} 20... Rxb2 {[%clk
0:02:02.2]} 21. Bc4 {[%clk 0:02:13.1]} 21... Qb8 {[%clk 0:01:54.5]} 22. Bb3
{[%clk 0:02:01.2]} 22... Qb6+ {[%clk 0:01:54.1]} 23. Kg2 {[%clk 0:01:59.7]}
23... Qd4 {[%clk 0:01:40.4]} 24. Qc1 {[%clk 0:01:28.9]} 24... Nb4 {[%clk
0:01:32.3]} 25. Rxa5 {[%clk 0:01:15.7]} 25... Nxc2 {[%clk 0:01:31.9]} 26. Bxc2
{[%clk 0:01:15.3]} 26... Qc3 {[%clk 0:01:32.1]} 0-1

[Event "Late-Titled-Tuesday-Blitz-June-04-2024"]
[Site "Chess.com"]
[Date "2024.06.04"]
[Round "6"]
[White "ArtemDyachuk"]
[Black "whiteglovethief"]
[Result "1-0"]
[WhiteElo "2675"]
[BlackElo "2529"]
[TimeControl "180+1"]
[EndTime "15:03:19 PDT"]
[Termination "ArtemDyachuk won by resignation"]

1. e4 {[%clk 0:03:00.9]} 1... e6 {[%clk 0:02:59.1]} 2. d4 {[%clk 0:03:00.3]}
2... d5 {[%clk 0:03:00]} 3. Nc3 {[%clk 0:03:00.1]} 3... Bb4 {[%clk 0:02:59.2]}
4. e5 {[%clk 0:02:59.6]} 4... Ne7 {[%clk 0:02:58.9]} 5. a3 {[%clk 0:02:58.9]}
5... Bxc3+ {[%clk 0:02:59.2]} 6. bxc3 {[%clk 0:02:59.8]} 6... c5 {[%clk
0:02:59.5]} 7. Qg4 {[%clk 0:03:00.3]} 7... Qc7 {[%clk 0:02:59.7]} 8. Qxg7 {[%clk
0:02:59.8]} 8... Rg8 {[%clk 0:02:59.3]} 9. Qxh7 {[%clk 0:03:00.4]} 9... cxd4
{[%clk 0:02:59.7]} 10. Qd3 {[%clk 0:03:00.7]} 10... dxc3 {[%clk 0:02:59.7]} 11.
Nf3 {[%clk 0:03:00.4]} 11... Nd7 {[%clk 0:02:56.4]} 12. Bf4 {[%clk 0:02:59.9]}
12... b6 {[%clk 0:02:52.5]} 13. h4 {[%clk 0:02:59.5]} 13... a5 {[%clk
0:02:50.2]} 14. Qh7 {[%clk 0:02:49.1]} 14... Bb7 {[%clk 0:02:40.9]} 15. h5
{[%clk 0:02:21.5]} 15... O-O-O {[%clk 0:02:33.1]} 16. Qxf7 {[%clk 0:00:58.6]}
16... Nc5 {[%clk 0:02:23.3]} 17. h6 {[%clk 0:00:58.9]} 17... Rgf8 {[%clk
0:02:18]} 18. Qg7 {[%clk 0:00:57.9]} 18... Rxf4 {[%clk 0:02:15.6]} 19. h7 {[%clk
0:00:57.8]} 19... Rff8 {[%clk 0:02:03.1]} 20. h8=Q {[%clk 0:00:56.4]} 20... Rxh8
{[%clk 0:02:03.2]} 21. Rxh8 {[%clk 0:00:57.1]} 21... Rxh8 {[%clk 0:02:03.2]} 22.
Qxh8+ {[%clk 0:00:58]} 22... Kd7 {[%clk 0:02:02.5]} 23. Bb5+ {[%clk 0:00:50.9]}
23... Bc6 {[%clk 0:02:01.6]} 24. Nd4 {[%clk 0:00:47.9]} 24... Bxb5 {[%clk
0:01:54.4]} 25. Nxb5 {[%clk 0:00:48.8]} 25... Qc6 {[%clk 0:01:39.5]} 26. Nd6
{[%clk 0:00:47.7]} 26... Nb7 {[%clk 0:01:39.4]} 27. Qe8+ {[%clk 0:00:47]} 1-0